Workbook

Sheet Instructions
D1: State of Kansas Information Security Self Assessment
A10: This self assessment template has been built to assist the organization in performing a self assessment of its information security program. This assessment is based on both State statutes and information security policies. This assessment uses a simple Yes or No model to assist in measuring the security program and its maturity level. Through a list of requirements pulled from both the Kansas Cybersecurity Act of 2018 and ITEC 7230A, a score is determined based on assessor's feels a requirement is met or not. Questions can be answered "Yes," "No," or "Not Applicable," which translates to a 0 - 1 numerical value. Once each section is completed, scores will be averaged to develop an "average section score". Finally, all sections will be averaged to develop an overall perceived maturity level. Utilizing this tool over the course of several assessments can help develop a picture or trend of the progress of the organization's information security program. If there are any questions questions, please do not hesitate to ask and contact the KISO office. kiso@ks.gov This self assessment when filled, and supporting docments are deemed CONFIDENTIAL under K.S.A 75-7240

Sheet Executive Summary
A1: Executive Summary
A2: This scorecard gives you a general ovarall picture of compliance and maturity of compliance with the Kansas Cybersercurity Act and the 2019 version of ITEC 7230a. It is important to understand that compliance doesn't equate to complete security. Security is an ongoing and evolving process. Your organization should be taking additional steps that might not be fully addressed or recognized by either the KCA or ITEC 7230a.
A6: ***KCA Executive Branch Agency Head Responsibilities | B6: ***KCA -> | C6: ='SoK Security Program Assessment'!F5 -> 0
A7: 6.0 RISK MANAGEMENT STANDARD | B7: Total Score for Section 6.0 -> | C7: ='SoK Security Program Assessment'!F26 -> 0
A8: 7.0 ASSESSMENT AND SECURITY PLANNING STANDARD | B8: Total Score for Section 7.0-> | C8: ='SoK Security Program Assessment'!F47 -> 0
A9: 8.0 AWARENESS AND TRAINING STANDARD | B9: Total Score for Section 8.0 -> | C9: ='SoK Security Program Assessment'!F55 -> 0
A10: 9.0 ACCESS CONTROL STANDARD | B10: Total Score for Section 9.0-> | C10: ='SoK Security Program Assessment'!F74 -> 0
A11: 10.0 SYSTEMS CONFIGURATION STANDARD | B11: Total Score for Section 10.0-> | C11: ='SoK Security Program Assessment'!F133 -> 0
A12: 11.0 DATA PROTECTION STANDARD | B12: Total Score for Section 11.0-> | C12: ='SoK Security Program Assessment'!F156 -> 0
A13: 12.0 APPLICATION PROCESSING STANDARD | B13: Total Score for Section 12.0-> | C13: ='SoK Security Program Assessment'!F167 -> 0
A14: 13.0 SYSTEMS OPERATIONS STANDARD | B14: Total Score for Section 13.0-> | C14: ='SoK Security Program Assessment'!F170 -> 0
A15: 14.0 SYSTEM AUDIT STANDARD | B15: Total Score for Section 14.0-> | C15: ='SoK Security Program Assessment'!F193 -> 0
A16: 15.0 INCIDENT RESPONSE STANDARD | B16: Total Score for Seciton 15.0-> | C16: ='SoK Security Program Assessment'!F207 -> 0
A17: 16.0 PHYSICAL SECUIRTY STANDARD | B17: Total Score for Section 16.0-> | C17: ='SoK Security Program Assessment'!F225 -> 0
A18: 17.0 PERSONNEL SECURITY STANDARDS | B18: Total Score for Section 17.0-> | C18: ='SoK Security Program Assessment'!F236 -> 0
A19: 18.0 SECURE PURCHASING/ACQUISITION STANDARD | B19: Total Score for Section 18.0-> | C19: ='SoK Security Program Assessment'!F248 -> 0
A20: THE END -- overall average ------> | D20: =AVERAGE(C6:C19) -> 0
A23: *** KCA is the Kansas Cybersecurity Act of 2018

Sheet SoK Security Program Assessment
A1: Question Number | B1: Requirement and location | C1: Name of person completing assessment:
C2: Name of department or entity (if applicable):
C3: Date completed:
B4: Kansas Cybersecurity Act K.S.A 75-7240 Section and Line
C5: Executive Branch Agency Head; Responsibilities; reports; training; breach protocol | D5: What to look for: | E5: Overall KCA | F5: =AVERAGE(F6:F23) -> 0 | H5: Evidence/Explanation
A6: 1 | B6: (a) | C6: Agency executive understands they are solely responsible for security of all data and information technology resources under such agency's purview, irrespective of the location of the data or resources. | D6: Assessor should look to ask executives if they are aware of and understand their requirements for information security. | E6: NO | F6: =VLOOKUP(E6,Lookups!$A$2:$B$4,2,FALSE) -> 0
A7: 2 | B7: (b) | C7: Ensure that an agency-wide information security program is in place | D7: Organization leadership should affirm a program is in place. An information security governance charter would be an example. | E7: NO | F7: =VLOOKUP(E7,Lookups!$A$2:$B$4,2,FALSE) -> 0
A8: 3 | B8: (c) | C8: Designate an information security officer to administer the agency's information security program that reports directly to executive leadership | D8: Organization should have an appointment letter on file for and ISO or communication appointing one. | E8: NO | F8: =VLOOKUP(E8,Lookups!$A$2:$B$4,2,FALSE) -> 0
A9: 4 | B9: (d) | C9: Participate in CISO-sponsored statewide cybersecurity program initiatives and services | E9: NO | F9: =VLOOKUP(E9,Lookups!$A$2:$B$4,2,FALSE) -> 0
A10: 5 | B10: (e) | C10: Implement policies and standards to ensure that all the agency's data and information technology resources are maintained in compliance with applicable state and federal laws | D10: Agency should have information security policies in place or know to reference ITEC 7230 as their information security policy. | E10: NO | F10: =VLOOKUP(E10,Lookups!$A$2:$B$4,2,FALSE) -> 0
A11: 6 | B11: (f) | C11: Implement appropriate cost-effective safeguards to reduce, eliminate or recover from identified threats to data and information technology resources | E11: NO | F11: =VLOOKUP(E11,Lookups!$A$2:$B$4,2,FALSE) -> 0
A12: 7 | B12: (g) | C12: Include all appropriate cybersecurity requirements in the agency's request for proposal specifications for procuring data and information technology systems and services | D12: Agency should have recent RFP or contract available that has a section that addresses cybersecurity requirements. | E12: NO | F12: =VLOOKUP(E12,Lookups!$A$2:$B$4,2,FALSE) -> 0
A13: 8 | B13: (h)(1) | C13: Submit a cybersecurity vulnerability assessment report to the CISO by October 16 of each even-numbered year | D13: Agency should have a copy of a complete agency vulnerability assessment. | E13: NO | F13: =VLOOKUP(E13,Lookups!$A$2:$B$4,2,FALSE) -> 0
A14: 9 | B14: (h)(2) | C14: Ensure that the agency conducts annual internal assessments of its security program. | D14: Agency should have a copy of their internal security program assessment (e.g. a completed copy of this document or a previous version). | E14: NO | F14: =VLOOKUP(E14,Lookups!$A$2:$B$4,2,FALSE) -> 0
A15: 10 | B15: (h)(3) | C15: Prepare or have prepared a summary of the cybersecurity assessment report required in paragraph excluding information that might put the data or information resources of the agency or its contractors at risk and submit such report to the house of representatives committee on government, technology and security or its successor committee and the senate committee on ways and means | D15: Organization should have a redacted or aggregate summary report of their vulnerability assessment available for review. | E15: NO | F15: =VLOOKUP(E15,Lookups!$A$2:$B$4,2,FALSE) -> 0
A16: 11 | B16: (i) | C16: Participate in annual agency leadership training to ensure understanding of: | D16: Organization should have record of executives taking awareness course specific to executives (e.g. certificate of completion from KISO executive training, or participating in a KISO sponsored executive symposium). | E16: NO | F16: =VLOOKUP(E16,Lookups!$A$2:$B$4,2,FALSE) -> 0
A17: 12 | B17: (i)(1) | C17: The information and information systems that support the operations and assets of the agency
A18: 13 | B18: (i)(2) | C18: The potential impact of common types of cyberattacks and data breaches on the agency's operations and assets
A19: 14 | B19: (i)(3) | C19: How cyber attacks and data breaches on the agency's operations and assets could impact the operations and assets of other governmental entities on the state enterprise network
A20: 15 | B20: (i)(4) | C20: How cyber attacks and data breaches occur
A21: 16 | B21: (i)(5) | C21: Steps to be undertaken by the executive director or agency head and agency employees to protect their information and information systems
A22: 17 | B22: (i)(6) | C22: The annual reporting requirements required of the executive director or agency head
B23: (j) | C23: Agency must understand breach notification requirements outlined in K.S.A. 2018 Supp. 50-7a01 et seq., and amendments thereto, and applicable federal laws and rules and regulations. In addition that they must notify the CISO not later than 48 hours after the discovery of the breach, suspected breach or unauthorized exposure. If breach, suspected breach or unauthorized exposure involves election data, they must notify the secretary of state | D23: Assessor should ask organization executives if they are aware of their notification requirements. Additional evidence could be in the inclusion of notification requirements in their incident response policy, plans, procedures, or incident response communication plan. | E23: NO | F23: =VLOOKUP(E23,Lookups!$A$2:$B$4,2,FALSE) -> 0
B25: ITEC 7230A (2019) Section and Line
B26: 6.0 | C26: RISK MANAGEMENT STANDARD | F26: =IFERROR(AVERAGE(F27:F46),"") -> 0 | H26: Evidence/Explanation
A27: =IF(ISBLANK(G27),IF(ISBLANK(A26),A4+1,A26+1)," ") -> 1 | B27: 6.1 | C27: Entities must develop a hierarchal Information Asset classification standard that assigns appropriate controls to each Information Asset classification. The standard must require the security controls specified in this document to be applied to Restricted-Use Information. | D27: Organization should have a information asset classification (data classification) policy or reference that they use the 7230a standard to classify information assets. | E27: NO | F27: =VLOOKUP(E27,Lookups!$A$2:$B$4,2,FALSE) -> 0
A28: =IF(ISBLANK(G28),IF(ISBLANK(A27),A5+1,A27+1)," ") -> 2 | B28: 6.2 | C28: Entities must also set a default information classification for all information. If no default standard is created, all information must be considered Restricted-Use Information. | D28: Organization should have a information asset classification (data classification) policy or reference that they use the 7230a standard to classify information assets. | E28: NO | F28: =VLOOKUP(E28,Lookups!$A$2:$B$4,2,FALSE) -> 0
A29: =IF(ISBLANK(G29),IF(ISBLANK(A28),A6+1,A28+1)," ") -> 3 | B29: 6.3 | C29: Entities must ensure that Information Asset trustees are appointed for the following Information Assets: | D29: Entities should have a document that indicates who the Information Asset Trustee is. (This role could also be labeled as the "Data Owner", Can use "Roles and Responsibilities document published on KISO website.) | E29: NO | F29: =VLOOKUP(E29,Lookups!$A$2:$B$4,2,FALSE) -> 0
A30: =IF(ISBLANK(G30),IF(ISBLANK(A29),A7+1,A29+1)," ") -> 4 | B30: 6.3.1 | C30: Intellectual property or | E30: NO | F30: =VLOOKUP(E30,Lookups!$A$2:$B$4,2,FALSE) -> 0
A31: =IF(ISBLANK(G31),IF(ISBLANK(A30),A9+1,A30+1)," ") -> 5 | B31: 6.3.2 | C31: Data compilations that contain or may be projected to contain Source Records on thirty (30) or more individuals of Restricted-Use Information. | E31: NO | F31: =VLOOKUP(E31,Lookups!$A$2:$B$4,2,FALSE) -> 0
A32: 6 | B32: 6.4 | C32: Information Asset trustees must perform the following tasks for each information Asset: | D32: Organization should show that the individual identified as the Information Asset Trustee has seen and understands their role and responsibilities. (Could use the Roles and Responsibilities document published on the KISO website and have the Trustee sign the document). | E32: NO | F32: =VLOOKUP(E32,Lookups!$A$2:$B$4,2,FALSE) -> 0
A33: 7 | B33: 6.4.1 | C33: Determine the potential impact to the affected entity, individuals and the State in the event of a loss of confidentiality, integrity, and availability of the Information Asset. | E33: NO | F33: =VLOOKUP(E33,Lookups!$A$2:$B$4,2,FALSE) -> 0
A34: 8 | B34: 6.4.2 | C34: Classify the asset in accordance with the Entity’s Information Asset classification standard. | E34: NO | F34: =VLOOKUP(E34,Lookups!$A$2:$B$4,2,FALSE) -> 0
A35: 9 | B35: 6.4.3 | C35: Ensure that the asset is handled in accordance with the Entity’s Information Asset handling standard. | E35: NO | F35: =VLOOKUP(E35,Lookups!$A$2:$B$4,2,FALSE) -> 0
A36: 10 | B36: 6.4.4 | C36: Ensure that adverse events are reported to the Entity Information Security Officer (ISO). | E36: NO | F36: =VLOOKUP(E36,Lookups!$A$2:$B$4,2,FALSE) -> 0
A37: 11 | B37: 6.4.5 | C37: Appoint Information Asset custodians. | E37: NO | F37: =VLOOKUP(E37,Lookups!$A$2:$B$4,2,FALSE) -> 0
A38: 12 | B38: 6.4.6 | C38: Approve all access and use of the Information Asset. | E38: NO | F38: =VLOOKUP(E38,Lookups!$A$2:$B$4,2,FALSE) -> 0
A39: 13 | B39: 6.4.7 | C39: Recertify annually the classification, access, users and custodians of the Information Asset. | E39: NO | F39: =VLOOKUP(E39,Lookups!$A$2:$B$4,2,FALSE) -> 0
A40: 14 | B40: 6.5 | C40: Information Asset custodians must perform the following responsibilities: | D40: Organization should show that the individual identified as the Information Asset Custodian has seen and understands their role and responsibilities. (Could use the Roles and Responsibilities document published on the KISO website) | E40: NO | F40: =VLOOKUP(E40,Lookups!$A$2:$B$4,2,FALSE) -> 0
A41: 15 | B41: 6.5.1 | C41: Implement and operate the safeguards and controls for Information Assets as directed by Information Asset trustees. | E41: NO | F41: =VLOOKUP(E41,Lookups!$A$2:$B$4,2,FALSE) -> 0
A42: 16 | B42: 6.6 | C42: Entities must implement a documented risk management process that addresses risk identification, tracking, mitigation, reporting, and acceptance. | D42: Organizations should have a Risk Management policy or procedure document | E42: NO | F42: =VLOOKUP(E42,Lookups!$A$2:$B$4,2,FALSE) -> 0
A43: 17 | B43: 6.7 | C43: Entities must document and track all outstanding risks (i.e. risk register). | D43: Organization should have a document that lists identified risk and status of the risk. Most likely a spreadsheet. | E43: NO | F43: =VLOOKUP(E43,Lookups!$A$2:$B$4,2,FALSE) -> 0
A44: 18 | B44: 6.8 | C44: Entities must periodically review existing risks | D44: Organization should have a standing meeting to review risk. A recurring calendar entry would evidence or dates or review indicated in the risk register. | E44: NO | F44: =VLOOKUP(E44,Lookups!$A$2:$B$4,2,FALSE) -> 0
A45: =IF(ISBLANK(G45),IF(ISBLANK(A44),A24+1,A44+1)," ") -> 19 | B45: 6.9 | C45: Entities must process and approve any Variances or Exceptions to the requirements in this policy | D45: Organization should have a signature process by where management approves and accepts the reisk of exceptions or variances to policy. Signed/Approved variance request form on KISO website would be an example | E45: NO | F45: =VLOOKUP(E45,Lookups!$A$2:$B$4,2,FALSE) -> 0
A46: 20 | B46: 6.10 | C46: Entities must document, track and report any approved Variances or Exceptions | D46: Organization should have a document to report exceptions/variances to policy. (Can use exception form published on KISO website). | E46: NO | F46: =VLOOKUP(E46,Lookups!$A$2:$B$4,2,FALSE) -> 0
B47: 7.0 | C47: ASSESSMENT AND SECURITY PLANNING STANDARD | E47: Section 7 Overall | F47: =IFERROR(AVERAGE(F48,F52),"") -> 0
C48: Risk Assessment | F48: =IFERROR(AVERAGE(F49:F51),"") -> 0 | H48: Evidence/Explanation
A49: 21 | B49: 7.1 | C49: Entities must assess and document the risks to information systems that process, store or transmit Restricted-Use Information. | D49: Organization should have a risk assessment for each of their information systems (Check to see if they have a completed assessment) | E49: NO | F49: =VLOOKUP(E49,Lookups!$A$2:$B$4,2,FALSE) -> 0
A50: =IF(ISBLANK(G50),IF(ISBLANK(A49),A48+1,A49+1)," ") -> 22 | B50: 7.2 | C50: Entity risk assessments must identify potential threats and characterize the likelihood and impact of the threat being realized. | D50: These components should be within the risk assessments | E50: NO | F50: =VLOOKUP(E50,Lookups!$A$2:$B$4,2,FALSE) -> 0
A51: =IF(ISBLANK(G51),IF(ISBLANK(A50),A49+1,A50+1)," ") -> 23 | B51: 7.3 | C51: Entities must assess and document risks prior to placing an information system into service, whenever a significant change is made, and at least once every three (3) years thereafter. | D51: Organizations should date when their risk assessment was initially conducted, update, or reviewed. This should be on the risk assessment document. | E51: NO | F51: =VLOOKUP(E51,Lookups!$A$2:$B$4,2,FALSE) -> 0
C52: Security Planning | F52: =IFERROR(AVERAGE(F53:F54),"") -> 0 | H52: Evidence/Explanation
A53: =IF(ISBLANK(G53),IF(ISBLANK(A52),A51+1,A52+1)," ") -> 24 | B53: 7.4 | C53: Entities must document a security plan that specifies security controls based upon a risk assessment for information systems that process, store or transmit Restricted-Use Information. | D53: Organization should have a System Security Plan (SSP) document for each of their defined information systems ( See if they have a completed SSP for any of their systems) | E53: NO | F53: =VLOOKUP(E53,Lookups!$A$2:$B$4,2,FALSE) -> 0
A54: =IF(ISBLANK(G54),IF(ISBLANK(A53),A52+1,A53+1)," ") -> 25 | B54: 7.5 | C54: The set of security controls in the security plan must be sufficient to adequately mitigate risks to organizational operations and assets, individuals, other organizations and the state, based on the entity risk tolerance. | D54: Information system controls should be determined off of some sort of risk categorization such as NIST FIPS199 or other organization defined risk categories. | E54: NO | F54: =VLOOKUP(E54,Lookups!$A$2:$B$4,2,FALSE) -> 0
B55: 8.0 | C55: AWARENESS AND TRAINING STANDARD | E55: Section 8 Overall | F55: =IFERROR(AVERAGE(F56),"") -> 0
C56: Security Awareness Training | F56: =IFERROR(AVERAGE(F57:F73),"") -> 0 | H56: Evidence/Explanation
A57: =IF(ISBLANK(G56),IF(ISBLANK(A55),A54+1,A55+1),A56+1) -> 26 | B57: 8.1 | C57: Entities must provide and conduct security awareness training for all Users. | D57: Organization should identify where they are getting their security awareness training from (internally produce, utilize KISO, or contract). This could be included an a Training Policy | E57: NO | F57: =VLOOKUP(E57,Lookups!$A$2:$B$4,2,FALSE) -> 0
A58: =IF(ISBLANK(G58),IF(ISBLANK(A57),A56+1,A57+1)," ") -> 27 | B58: 8.2 | C58: Entities must require all employees to complete security awareness training within ninety (90) days of hire and on an annual basis thereafter. | D58: Check training completion records for individuals within the organization to include a long time employee and a new hire individual | E58: NO | F58: =VLOOKUP(E58,Lookups!$A$2:$B$4,2,FALSE) -> 0
A59: 28 | B59: 8.3 | C59: Entities must retain a form of acknowledgement of training completion. | D59: Organization should have some way of tracking user completion such as a signed attendance roster for in person training, signature sheet, system generated report, or certificate of completion. | E59: NO | F59: =VLOOKUP(E59,Lookups!$A$2:$B$4,2,FALSE) -> 0
A60: 29 | B60: 8.4 | C60: Entities must review their security awareness training materials at least annually or more frequently as needed. | D60: Entities should document the review of material or show that the material has changed from year to year. | E60: NO | F60: =VLOOKUP(E60,Lookups!$A$2:$B$4,2,FALSE) -> 0
A61: 30 | B61: 8.5 | C61: Awareness training must address the following topics at a minimum: | D61: Organization should be able to provide a list of topics covered in their security awareness training or provide a copy of the training. | E61: NO | F61: =VLOOKUP(E61,Lookups!$A$2:$B$4,2,FALSE) -> 0
A62: 31 | B62: 8.5.1 | C62: Passwords including creation, changing, aging and confidentiality
A63: 32 | B63: 8.5.2 | C63: Privacy and proper handling of sensitive information
A64: 33 | B64: 8.5.3 | C64: Physical security
A65: 34 | B65: 8.5.4 | C65: Social engineering
A66: 35 | B66: 8.5.5 | C66: Identity theft avoidance and action
A67: 36 | B67: 8.5.6 | C67: Email usage
A68: 37 | B68: 8.5.7 | C68: Internet usage
A69: 38 | B69: 8.5.8 | C69: Viruses and malware
A70: 39 | B70: 8.5.9 | C70: Software usage, copyrights and file sharing
A71: 40 | B71: 8.5.10 | C71: Portable devices
A72: 41 | B72: 8.5.11 | C72: Proper use of encryption devices
A73: 42 | B73: 8.5.12 | C73: Reporting of suspicious activity and abuse
B74: 9.0 | C74: ACCESS CONTROL STANDARD | E74: Section 9 Overall | F74: =IFERROR(AVERAGE(F75,F117,F124),"") -> 0
C75: Identification and Authentication | F75: =IFERROR(AVERAGE(F76:F116),"") -> 0 | H75: Evidence/Explanation
A76: =IF(ISBLANK(G75),IF(ISBLANK(A74),A73+1,A74+1),A75+1) -> 43 | B76: 9.1 | C76: User access to Critical Systems or Information Systems that process, store or transmit Restricted-Use Information must be authorized by an appropriate Entity official through established protocols within the entity. | D76: A paper trail of approval or system should be in place tracking a users access to resources. Look for a user access request form or a system access form to request access. | E76: NO | F76: =VLOOKUP(E76,Lookups!$A$2:$B$4,2,FALSE) -> 0
A77: =IF(ISBLANK(G77),IF(ISBLANK(A76),A75+1,A76+1)," ") -> 44 | B77: 9.2 | C77: Users of Critical Systems or Information Systems that process, store or transmit Restricted-Use Information must be authenticated by a unique system identifier. | D77: Each user should have a unique UserID or account. Organizations should be able to show in Active Directory or other applications. | E77: NO | F77: =VLOOKUP(E77,Lookups!$A$2:$B$4,2,FALSE) -> 0
A78: 45 | B78: 9.3 | C78: Users with administrative rights or elevated privileges must use a separate account to perform tasks that require elevated privileges or administrative rights. | D78: Organization should show the two separate accounts used by administrators. This would typically be done in Active Directory | E78: NO | F78: =VLOOKUP(E78,Lookups!$A$2:$B$4,2,FALSE) -> 0
A79: 46 | B79: 9.3.1 | C79: Administrative rights and elevated privilege accounts must only be used for activities that require elevated privileges (i.e. not for email access or internet browsing). | D79: Organization should have a policy indicating the abilities of admin accounts or have a technical control in place to prevent prohibited activities. | E79: NO | F79: =VLOOKUP(E79,Lookups!$A$2:$B$4,2,FALSE) -> 0
A80: 47 | B80: 9.3.2 | C80: Multi-Factor Authentication must be used for administrative rights or elevated privilege accounts | D80: Organization should show the MFA solution that is being utilized for admin accounts | E80: NO | F80: =VLOOKUP(E80,Lookups!$A$2:$B$4,2,FALSE) -> 0
A81: 48 | B81: 9.3.3 | C81: User accounts with administrative rights or elevated privileges must not have an email account or mailbox provisioned or associated with it. | D81: Organization should show that admin accounts do not have an address in the Email Global Address List (GAL) | E81: NO | F81: =VLOOKUP(E81,Lookups!$A$2:$B$4,2,FALSE) -> 0
A82: 49 | B82: 9.4 | C82: System Service Accounts must be approved and documented for proper business use prior to creation and must be reviewed and approved annually for continued use. | D82: Organizations should have a document that tracks service accounts and has review dates (Could be an Excel document or Word document) | E82: NO | F82: =VLOOKUP(E82,Lookups!$A$2:$B$4,2,FALSE) -> 0
A83: 50 | B83: 9.5 | C83: System Service Accounts must be configured with least privilege and only used for a single task or service | D83: Service Accounts should not be in the "Domain Admin" group in active directory or used in multiple applications. | E83: NO | F83: =VLOOKUP(E83,Lookups!$A$2:$B$4,2,FALSE) -> 0
A84: 51 | B84: 9.6 | C84: Unique system identifiers will be associated with a unique Information System authenticator (i.e. password, token etc.) | D84: Language should be in account creation standards and procedures to address linking of unique authenticators to idenfiers | E84: NO | F84: =VLOOKUP(E84,Lookups!$A$2:$B$4,2,FALSE) -> 0
A85: 52 | B85: 9.7 | C85: Unique Information System authenticators must be delivered in a secure and confidential manner. | D85: Organization should have procedure to deliver authenticators to the user of authenticators | E85: NO | F85: =VLOOKUP(E85,Lookups!$A$2:$B$4,2,FALSE) -> 0
A86: 53 | B86: 9.8 | C86: Passwords must not be viewable in clear text except by the account holder. | D86: Passwords should not be transmitted or stored in uncrypted formats like Excel spreadsheets or Telnet etc. | E86: NO | F86: =VLOOKUP(E86,Lookups!$A$2:$B$4,2,FALSE) -> 0
A87: 54 | B87: 9.9 | C87: Passwords must not be transmitted or electronically stored in clear text. | D87: Passwords should not be transmitted or stored in uncrypted formats like Excel spreadsheets or Telnet etc. | E87: NO | F87: =VLOOKUP(E87,Lookups!$A$2:$B$4,2,FALSE) -> 0
A88: 55 | B88: 9.10 | C88: Passwords must not be shared and must be kept confidential. | D88: Organizations should have reminders to staff or policy not to share passwords to their unique accounts. This could also be part of training material. | E88: NO | F88: =VLOOKUP(E88,Lookups!$A$2:$B$4,2,FALSE) -> 0
A89: 56 | B89: 9.11 | C89: Passwords for sytem User accounts must be constructed with the following requirements: | D89: Password settings are typically controlled through Active Directory Group Policy. Have agency show GPO settings that show password requirements. | E89: NO | F89: =VLOOKUP(E89,Lookups!$A$2:$B$4,2,FALSE) -> 0
A90: 57 | B90: 9.11.1 | C90: A minimum of twelve (12) characters in length.
A91: 58 | B91: 9.11.2 | C91: Contain three (3) of four (4) of the following categories:
A92: 59 | C92: Uppercase
A93: 60 | C93: Lowercase
A94: 61 | C94: Numeral
A95: 62 | C95: Non-alpha numeric character
A96: 63 | B96: 9.11.3 | C96: Must not contain the user ID
A97: 64 | B97: 9.11.4 | C97: Must not be changed more frequently than once every one (1) day without system administrator intervention
A98: 65 | B98: 9.11.5 | C98: Must not have a lifespan that exceeds one hundred eighty (180) days
A99: 66 | B99: 9.11.6 | C99: Must be different from the previous twenty-four (24) passwords
A100: 67 | B100: 9.12 | C100: Passwords for System Service Accounts must be constructed with the following requirements: | D100: Password settings are typically controlled through Active Directory Group Policy. Have agency show GPO settings that show password requirements. | E100: NO | F100: =VLOOKUP(E100,Lookups!$A$2:$B$4,2,FALSE) -> 0
A101: 68 | B101: 9.12.1 | C101: A minimum of twelve (12) characters in length.
A102: 69 | B102: 9.12.2 | C102: Contain three (3) of four (4) of the following categories:
A103: 70 | C103: Uppercase
A104: 71 | C104: Lowercase
A105: 72 | C105: Numeral
A106: 73 | C106: Non-alpha numeric character
A107: 74 | B107: 9.12.3 | C107: Must not contain the user ID
A108: 75 | B108: 9.12.4 | C108: Must not have a lifespan that exceeds three hundred sixty-five (365) days
A109: 76 | B109: 9.13 | C109: Where tokens, whether soft tokens or physical tokens, as authenticators are used: | D109: If agency uses tokens, agnecy should have a procedure document that addresses the issuance, revocation and handling of lost, stolen or damaged tokens. | E109: NO | F109: =VLOOKUP(E109,Lookups!$A$2:$B$4,2,FALSE) -> 0
A110: 77 | B110: 9.13.1 | C110: A documented process must be followed for token distribution.
A111: 78 | B111: 9.13.2 | C111: A documented process must be followed for token revocation.
A112: 79 | B112: 9.13.3 | C112: A documented process must be followed for the handling of lost, stolen or damaged tokens.
A113: 80 | B113: 9.14 | C113: Where biometric data is used for authentication: | D113: If agency uses biometrics, agnecy should have a procedure document that addresses the how they capture biometric data, revoke it and properly handling of the biometric data. | E113: NO | F113: =VLOOKUP(E113,Lookups!$A$2:$B$4,2,FALSE) -> 0
A114: 81 | B114: 9.14.1 | C114: A documented process must be followed for capturing user biometric data.
A115: 82 | B115: 9.14.2 | C115: A documented process must be followed for biometric revocation.
A116: 83 | B116: 9.14.3 | C116: A documented process must be followed for the handling of user biometric data.
C117: Account Management | F117: =IFERROR(AVERAGE(F118:F123),"") -> 0 | H117: Evidence/Explanation
A118: =IF(ISBLANK(G118),IF(ISBLANK(A117),A116+1,A117+1)," ") -> 84 | B118: 9.15 | C118: All Information System accounts must be configured according to the principle of least privilege. | D118: Organization accounts should only be given permission to resources specifically needed to do their jobs. Organization should describe how they accomplish that (e.g. role based access, system roles, etc.). | E118: NO | F118: =VLOOKUP(E118,Lookups!$A$2:$B$4,2,FALSE) -> 0
A119: 85 | B119: 9.16 | C119: Separation of duties must be enforced through account privileges | D119: Accounts should have specific abilities that they can perform (In Active Directory this is done through security groups and permissions) | E119: NO | F119: =VLOOKUP(E119,Lookups!$A$2:$B$4,2,FALSE) -> 0
A120: 86 | B120: 9.16.1 | C120: No single user account can have privileges to authorize, perform, review, and audit a single transaction | D120: Check to see if applications allow users to delete records of their activity. | E120: NO | F120: =VLOOKUP(E120,Lookups!$A$2:$B$4,2,FALSE) -> 0
A121: 87 | B121: 9.16.2 | C121: When available, role-based access controls (RBAC) must be implemented and enforced for systems that contain Restricted-Use Information or systems designated as a Critical System. | D121: Where possible, systems should have defined sets of permissions based on specific roles. Organization should have a roles/permissions document or matrix for each information system. | E121: NO | F121: =VLOOKUP(E121,Lookups!$A$2:$B$4,2,FALSE) -> 0
A122: 88 | B122: 9.17 | C122: Information System accounts must be restricted to a maximum of five (5) consecutive failed attempts before being locked. | D122: Account lockout settings are typically controlled through Active Directory Group Policy. Have agency show GPO settings that show account lockout settings. | E122: NO | F122: =VLOOKUP(E122,Lookups!$A$2:$B$4,2,FALSE) -> 0
A123: 89 | B123: 9.18 | C123: Accounts must remain locked out for a minimum of thirty (30) minutes without administrator intervention. | D123: Account lockout settings are typically controlled through Active Directory Group Policy. Have agency show GPO settings that show account lockout settings. | E123: NO | F123: =VLOOKUP(E123,Lookups!$A$2:$B$4,2,FALSE) -> 0
C124: Session Management | F124: =IFERROR(AVERAGE(F125:F132),"") -> 0 | H124: Evidence/Explanation
A125: =IF(ISBLANK(G125),IF(ISBLANK(A124),A123+1,A124+1)," ") -> 90 | B125: 9.19 | C125: Information systems must display a system use notification identifying system ownership, system usage restrictions, prohibition of unauthorized access, implied consent and associated penalties for unauthorized access. The user must acknowledge the system use notification before gaining access to the information system. | D125: Check workstation login process or ask to see GPO setting within Active Directory. | E125: NO | F125: =VLOOKUP(E125,Lookups!$A$2:$B$4,2,FALSE) -> 0
A126: 91 | B126: 9.20 | C126: Entities must establish and document usage restrictions, configuration/connection requirements, and implementation guidance for each type of Remote Access allowed. | D126: Organization should have a remote access policy or procedure document. | E126: NO | F126: =VLOOKUP(E126,Lookups!$A$2:$B$4,2,FALSE) -> 0
A127: 92 | B127: 9.21 | C127: Entities must authorize Remote Access to an Information System prior to allowing such connections | D127: Organization should have an approval process whether written or systematically to request and approve remote access. | E127: NO | F127: =VLOOKUP(E127,Lookups!$A$2:$B$4,2,FALSE) -> 0
A128: 93 | B128: 9.22 | C128: When available, entities must deploy MFA for Remote Access to Critical Systems or systems containing Restricted-Use Information. | D128: Organizations should begin employing applications that require multifactor authentication. | E128: NO | F128: =VLOOKUP(E128,Lookups!$A$2:$B$4,2,FALSE) -> 0
A129: 94 | B129: 9.23 | C129: Remote Access sessions must be encrypted, auditable, and traverse managed access points. | D129: Remote access from outside the organization into the organization network should utilize a technology such as a VPN | E129: NO | F129: =VLOOKUP(E129,Lookups!$A$2:$B$4,2,FALSE) -> 0
A130: 95 | B130: 9.24 | C130: Remote sessions to information systems that process, store or transmit Restricted-Use Information must be terminated after a period of thirty (30) minutes of inactivity. | D130: Organization can show session termination and time limit settings within Active Directory or within their VPN solution. | E130: NO | F130: =VLOOKUP(E130,Lookups!$A$2:$B$4,2,FALSE) -> 0
A131: 96 | B131: 9.25 | C131: Local console sessions on information systems that process, store or transmit Restricted-Use Information must be locked after a period of thirty (30) minutes of inactivity. | D131: Organization can show inactivity limit settings within Active Directory | E131: NO | F131: =VLOOKUP(E131,Lookups!$A$2:$B$4,2,FALSE) -> 0
A132: 97 | B132: 9.26 | C132: Authentication must be required to unlock a console session or reestablish a remote session. | D132: Organization can show unlock settings within Active Directory | E132: NO | F132: =VLOOKUP(E132,Lookups!$A$2:$B$4,2,FALSE) -> 0
B133: 10.0 | C133: SYSTEMS CONFIGURATION STANDARD | E133: Section 10 Overall | F133: =IFERROR(AVERAGE(F134,F140,F150),"") -> 0
C134: Configuration Management | F134: =IFERROR(AVERAGE(F135:F139),"") -> 0 | H134: Evidence/Explanation
A135: =IF(ISBLANK(G135),IF(ISBLANK(A134),IF(ISBLANK(A133),A132+1,A133+1),A134+1)," ") -> 98 | B135: 10.1 | C135: Entities must build information systems that process, store or transmit Restricted-Use Information from a standard configuration baseline. | D135: Organization should use a baseline configuration such as CIS Benchmarks, DISA Stigs, IRS SCSEMS, etc. to configure their systems. They may define their own if they wish. | E135: NO | F135: =VLOOKUP(E135,Lookups!$A$2:$B$4,2,FALSE) -> 0
A136: =IF(ISBLANK(H136),IF(ISBLANK(A135),A134+1,A135+1)," ") -> 99 | B136: 10.2 | C136: The standard configuration baseline must include the specifications of the information system components and the security controls for each component. | D136: If using a known baseline like CIS Benchmarks etc., controls are specified by the baseline | E136: NO | F136: =VLOOKUP(E136,Lookups!$A$2:$B$4,2,FALSE) -> 0
A137: =IF(ISBLANK(G137),IF(ISBLANK(A136),A135+1,A136+1)," ") -> 100 | B137: 10.3 | C137: Entities must maintain an asset inventory of information systems components and update it as it changes and review it at least annually. | D137: Organization should track information system components, whether physical or virtual, in an inventory system, spreadsheet, or diagram. | E137: NO | F137: =VLOOKUP(E137,Lookups!$A$2:$B$4,2,FALSE) -> 0
A138: =IF(ISBLANK(G138),IF(ISBLANK(A137),A136+1,A137+1)," ") -> 101 | B138: 10.4 | C138: The asset inventory must also identify and document the relationships between each of the information system components and the ownership of each component. | D138: Organization should have diagrams depicting the relationship or explain the relationship within the inventory documents. | E138: NO | F138: =VLOOKUP(E138,Lookups!$A$2:$B$4,2,FALSE) -> 0
A139: =IF(ISBLANK(G139),IF(ISBLANK(A138),A137+1,A138+1)," ") -> 102 | B139: 10.5 | C139: Collaborative infrastructure, such as video and teleconferencing, must be configured to prohibit remote activation. | D139: Check configuration settings for video and teleconferencing equipment. Physical barrier devices are acceptable such as web camera shields etc. | E139: NO | F139: =VLOOKUP(E139,Lookups!$A$2:$B$4,2,FALSE) -> 0
C140: Change Control | F140: =IFERROR(AVERAGE(F141:F155),"") -> 0 | H140: Evidence/Explanation
A141: =IF(ISBLANK(G141),IF(ISBLANK(A140),A139+1,A140+1)," ") -> 103 | B141: 10.6 | C141: Entities must document and adhere to change control processes when making changes to production systems. | D141: Organization should have a change control policy or procedures document. | E141: NO | F141: =VLOOKUP(E141,Lookups!$A$2:$B$4,2,FALSE) -> 0
A142: 104 | B142: 10.7 | C142: Change control requests must include proposed change description, justification, risk assessment, implementation plan, test plan, back-out plan, review and approval. | D142: A change control request document should be created and available for review | E142: NO | F142: =VLOOKUP(E142,Lookups!$A$2:$B$4,2,FALSE) -> 0
A143: 105 | B143: 10.8 | C143: Entities must maintain a change log for information systems containing Restricted-Use Information. | D143: Entity should have a change register (Excel Document, Form in binder, System/Application, etc.) | E143: NO | F143: =VLOOKUP(E143,Lookups!$A$2:$B$4,2,FALSE) -> 0
A144: 106 | B144: 10.9 | C144: The change log must include: | D144: Review Change log for details | E144: NO | F144: =VLOOKUP(E144,Lookups!$A$2:$B$4,2,FALSE) -> 0
A145: 107 | B145: 10.9.1 | C145: Date and time of maintenance
A146: 108 | B146: 10.9.2 | C146: Name and organization of person performing change
A147: 109 | B147: 10.9.3 | C147: Name of escort, if required
A148: 110 | B148: 10.9.4 | C148: Description of maintenance performed
A149: 111 | B149: 10.9.5 | C149: List of affected information systems components or component elements
C150: Systems Protection | F150: =IFERROR(AVERAGE(F151:F155),"") -> 0 | H150: Evidence/Explanation
A151: =IF(ISBLANK(G151),IF(ISBLANK(A163),A149+1,A163+1)," ") -> 112 | B151: 10.10 | C151: Entities must implement boundary protection mechanisms with capability to monitor and control network communications. | D151: Organization should have a Firewall the physically and logically separates their network from public networks or other organizations networks | E151: NO | F151: =VLOOKUP(E151,Lookups!$A$2:$B$4,2,FALSE) -> 0
A152: =IF(ISBLANK(G152),IF(ISBLANK(A151),A163+1,A151+1)," ") -> 113 | B152: 10.11 | C152: Within the boundary, entities must create security zones based on data and information system classification. | D152: Organizations should further logically separate their internal networks with VLAN,VRFs, or DMZs. | E152: NO | F152: =VLOOKUP(E152,Lookups!$A$2:$B$4,2,FALSE) -> 0
A153: =IF(ISBLANK(G153),IF(ISBLANK(A152),A151+1,A152+1)," ") -> 114 | B153: 10.12 | C153: Entities must employ malicious code protection mechanisms on systems that contain Restricted-Use Information. | D153: Organization should have an anti-virus client on systems. | E153: NO | F153: =VLOOKUP(E153,Lookups!$A$2:$B$4,2,FALSE) -> 0
A154: =IF(ISBLANK(G154),IF(ISBLANK(A153),A152+1,A153+1)," ") -> 115 | B154: 10.13 | C154: Entities must configure malicious code protection mechanisms to perform weekly scans of files on information systems. | D154: Organization anti-virus console should show the scanning schedule | E154: NO | F154: =VLOOKUP(E154,Lookups!$A$2:$B$4,2,FALSE) -> 0
A155: =IF(ISBLANK(G155),IF(ISBLANK(A154),A153+1,A154+1)," ") -> 116 | B155: 10.14 | C155: Where malicious code protection mechanisms require regular signature or detection engine updates, entities must employ a documented update mechanism that includes testing and installation of applicable updates. | D155: Anti-virus console anti-virus client should show the update cadence of the program. | E155: NO | F155: =VLOOKUP(E155,Lookups!$A$2:$B$4,2,FALSE) -> 0
B156: 11.0 | C156: DATA PROTECTION STANDARD | E156: Section 11 Overall | F156: =IFERROR(AVERAGE(F157:F162,F163),"") -> 0 | H156: Evidence/Explanation
A157: =IF(ISBLANK(G157),IF(ISBLANK(A156),A155+1,A156+1)," ") -> 117 | B157: 11.1 | C157: Entities must employ mechanism(s) to ensure the confidentiality, availability and integrity of Restricted-Use Information. | D157: Organization should have managerial, operational, and technical controls in place to ensure confidentiality, integrity and availability of RUI. | E157: NO | F157: =VLOOKUP(E157,Lookups!$A$2:$B$4,2,FALSE) -> 0
A158: 118 | B158: 11.2 | C158: Restricted-Use Information that has met the information retention schedule must be removed, destroyed or deleted in a verifiable manner. | D158: Organization should have a data retention policy and procedures to remove old data. (Overwrite, database purge, system deletes) | E158: NO | F158: =VLOOKUP(E158,Lookups!$A$2:$B$4,2,FALSE) -> 0
A159: 119 | B159: 11.3 | C159: Restricted-Use Information must be protected from unauthorized disclosure. | D159: Organization should have access controls in place to prevent unauthorized access/disclosure to RUI. Access control policy or procedures should be in place. | E159: NO | F159: =VLOOKUP(E159,Lookups!$A$2:$B$4,2,FALSE) -> 0
A160: 120 | B160: 11.4 | C160: Entities must use encryption modules, ciphers, or algorithms found within the NIST FIPS 140-2 validated list when encrypting Restricted-Use Information. | D160: Organization should use encryption solutions built into systems and not create their own (e.g. not creating XOR ciphers). | E160: NO | F160: =VLOOKUP(E160,Lookups!$A$2:$B$4,2,FALSE) -> 0
A161: 121 | B161: 11.5 | C161: Restricted-Use Information when transmitted electronically outside of a secure boundary must be encrypted. | D161: Organization should use tools such as Enterprise VPNs, client VPNs, websites with SSL/TLS or SSL/TLS tunnels to share sensitive information outside of their network to customers, partners, or other state organizations. | E161: NO | F161: =VLOOKUP(E161,Lookups!$A$2:$B$4,2,FALSE) -> 0
A162: 122 | B162: 11.6 | C162: Restricted-Use Information must be encrypted when stored on Portable Electronic Media or Portable Electronic Devices. | D162: Devices such as laptops, tablets, smart phones, USB storage devices (hard drives or thumb drives) etc. must have encryption enabled. For Windows based tablets and laptops, and USB storage devices (hard drives or thumb drives), Microsoft Bitlocker is the simplest solution. | E162: NO | F162: =VLOOKUP(E162,Lookups!$A$2:$B$4,2,FALSE) -> 0
C163: Media | F163: =IFERROR(AVERAGE(F164:F166),"") -> 0 | H163: Evidence/Explanation
A164: =IF(ISBLANK(G164),IF(ISBLANK(A163),A162+1,A163+1)," ") -> 123 | B164: 11.7 | C164: Media containing Restricted-Use Information must be disposed of in accordance with NIST Special Publication 800-88 – Guidelines for Media Sanitization. | D164: Digital media should be degaussed, shredded, or overwritten with approved tools. Paper media should be shredded using a shredder not by hand. Organization should identify how they dispose of media or provided the contract/vendor they use to dispose of media. | E164: NO | F164: =VLOOKUP(E164,Lookups!$A$2:$B$4,2,FALSE) -> 0
A165: =IF(ISBLANK(G165),IF(ISBLANK(A164),A162+1,A164+1)," ") -> 124 | B165: 11.8 | C165: Media that stores Restricted-Use Information must be stored securely within a controlled area and physical access to that controlled area must be restricted to authorized personnel. | D165: RUI should not be left in the open without individuals monitoring and protecting it. Cleared staff serve as a control method. If no staff is around media should be out of sight and secured in locked offices or locked file cabinets. | E165: NO | F165: =VLOOKUP(E165,Lookups!$A$2:$B$4,2,FALSE) -> 0
A166: =IF(ISBLANK(G166),IF(ISBLANK(A165),A163+1,A165+1)," ") -> 125 | B166: 11.9 | C166: Media containing Restricted-Use Information must be transported by authorized personnel when leaving a controlled area and must be transported in a manner that ensures appropriate safeguards are applied. | D166: Organization should have procedure for transporting RUI outside of the office if data is not encrypted on digital media, or on printed media. | E166: NO | F166: =VLOOKUP(E166,Lookups!$A$2:$B$4,2,FALSE) -> 0
B167: 12.0 | C167: APPLICATION PROCESSING STANDARD | E167: Section 12 Overall | F167: =IFERROR(AVERAGE(F168:F169),"") -> 0 | H167: Evidence/Explanation
A168: =IF(ISBLANK(G168),IF(ISBLANK(A167),A166+1,A167+1)," ") -> 126 | B168: 12.1 | C168: Entities must define and document principles and procedures for secure application development. | D168: Entities should have a secure coding or coding standards document | E168: NO | F168: =VLOOKUP(E168,Lookups!$A$2:$B$4,2,FALSE) -> 0
A169: =IF(ISBLANK(G169),IF(ISBLANK(A168),A167+1,A168+1)," ") -> 127 | B169: 12.2 | C169: The application element of all information systems components must logically separate user functionality from administrative functionality such that the interface for the one cannot be used to operate the other. | D169: Applications should have at least two roles within the system, administrator and user. Examine roles within an application to validate separation. | E169: NO | F169: =VLOOKUP(E169,Lookups!$A$2:$B$4,2,FALSE) -> 0
B170: 13.0 | C170: SYSTEMS OPERATIONS STANDARD | E170: Section 13 Overall | F170: =IFERROR(AVERAGE(F171,F182,F187),"") -> 0
C171: Assessment Operations | F171: =IFERROR(AVERAGE(F172:F181),"") -> 0 | H171: Evidence/Explanation
A172: =IF(ISBLANK(G171),IF(ISBLANK(A170),A169+1,A170+1),"A166+1") -> 128 | B172: 13.1 | C172: Entities must perform security assessments against all Critical Systems and all Information Systems that process, store or transmit Restricted-Use Information prior to installation in production environments and at least annually thereafter. Security assessments are required to ensure that security controls are implemented correctly, operating as intended, and producing the desired outcome with respect to meeting the security requirements of the system. | D172: Organization should test security controls of applications such as password requirements, timeouts, etc. Organization should have document that describes what is tested and what the outcome was. | E172: NO | F172: =VLOOKUP(E172,Lookups!$A$2:$B$4,2,FALSE) -> 0
A173: =IF(ISBLANK(G172),IF(ISBLANK(A172),A170+1,A172+1)," ") -> 129 | B173: 13.1.1 | C173: Entities must have a documented remediation plan for security issues discovered in security assessments. | D173: Entity should create a Plan of Action and Milestones document (POA&M) for each information system. KISO template is available. Organization should date each review. | E173: NO | F173: =VLOOKUP(E173,Lookups!$A$2:$B$4,2,FALSE) -> 0
A174: 130 | B174: 13.1.2 | C174: Entities must prioritize and establish timelines for implementing corrective actions for all security issues within the remediation plan.
A175: 131 | B175: 13.1.3 | C175: Entities must review all remediation plans and update them at least quarterly.
A176: 132 | B176: 13.2 | C176: Entities must perform vulnerability scans against all Information Systems prior to installation into production environments. | D176: Organization should have a vulnerability scan on file for systems going into production after September 30, 2019. | E176: NO | F176: =VLOOKUP(E176,Lookups!$A$2:$B$4,2,FALSE) -> 0
A177: 133 | B177: 13.3 | C177: Entities must perform vulnerability scans against all network connected Information Systems at least monthly. | D177: Organization should provide a copy of a recent vulnerability scan report for review | E177: NO | F177: =VLOOKUP(E177,Lookups!$A$2:$B$4,2,FALSE) -> 0
A178: 134 | B178: 13.4 | C178: Entities must monitor for security alerts and advisories relative to the technologies that are operating within their environments. | D178: Organization should receive alerts from the KISO, MS-ISAC, US-CERT, Microsoft, Oracle, or other recognizable authorities on computer security. | E178: NO | F178: =VLOOKUP(E178,Lookups!$A$2:$B$4,2,FALSE) -> 0
A179: 135 | B179: 13.5 | C179: Entities must have a documented patch management process. | D179: Organization should have a patch management policy, procedure, or standards document | E179: NO | F179: =VLOOKUP(E179,Lookups!$A$2:$B$4,2,FALSE) -> 0
A180: 136 | B180: 13.5.1 | C180: Patch requirements discovered or resulting from vulnerability scans or continuous monitoring must be addressed expeditiously. | D180: Compare Scan results over time and see if there is a trend of stability or decline | E180: NO | F180: =VLOOKUP(E180,Lookups!$A$2:$B$4,2,FALSE) -> 0
A181: 137 | B181: 13.5.2 | C181: Entities must use a risk-based approach to patch vulnerabilities or deploy mitigating controls when unable to patch vulnerabilities. | D181: See if organization documents mitigating controls when patching is unavailable or unfeasible | E181: NO | F181: =VLOOKUP(E181,Lookups!$A$2:$B$4,2,FALSE) -> 0
C182: Integrity Operations | F182: =IFERROR(AVERAGE(F183:F186),"") -> 0 | H182: Evidence/Explanation
A183: =IF(ISBLANK(G183),IF(ISBLANK(A182),A181+1,A182+1)," ") -> 138 | B183: 13.6 | C183: Entities must implement controls to ensure that configuration settings are within acceptable parameters. | D183: Organization should provide a copy of a configuration compliance scan to measure configurations against their baselines. | E183: NO | F183: =VLOOKUP(E183,Lookups!$A$2:$B$4,2,FALSE) -> 0
A184: =IF(ISBLANK(G184),IF(ISBLANK(A183),A182+1,A183+1)," ") -> 139 | B184: 13.7 | C184: Entities must implement integrity monitoring on information systems that process, store or transmit Restricted-Use Information. | D184: Organization should provide a copy of a configuration compliance scan to measure configurations against their baselines. Tracking against the baseline can identify changes to configuration settings. | E184: NO | F184: =VLOOKUP(E184,Lookups!$A$2:$B$4,2,FALSE) -> 0
A185: =IF(ISBLANK(G185),IF(ISBLANK(A184),A183+1,A184+1)," ") -> 140 | B185: 13.8 | C185: Entities must document and investigate integrity discrepancies. | D185: Organization should determine the nature of discrepancies and how they came about. | E185: NO | F185: =VLOOKUP(E185,Lookups!$A$2:$B$4,2,FALSE) -> 0
A186: =IF(ISBLANK(G186),IF(ISBLANK(A185),A184+1,A185+1)," ") -> 141 | B186: 13.9 | C186: Entities must validate, then circulate security alerts to appropriate personnel and ensure corrective action is taken. | D186: Organization should describe how they treat security alerts once received from sources internally or externally. | E186: NO | F186: =VLOOKUP(E186,Lookups!$A$2:$B$4,2,FALSE) -> 0
C187: Maintenance Operations | F187: =IFERROR(AVERAGE(F188:F192),"") -> 0 | H187: Evidence/Explanation
A188: =IF(ISBLANK(G188),IF(ISBLANK(A187),A186+1,A187+1)," ") -> 142 | B188: 13.10 | C188: Entities must not operate information systems containing Restricted-Use Information without either redundant qualified in-house staff or by contract for vendor managed support. | D188: Information systems should not have any support single points of failure or left in an unsupported stated. See if organization has assignments of who is supporting information system. | E188: NO | F188: =VLOOKUP(E188,Lookups!$A$2:$B$4,2,FALSE) -> 0
A189: =IF(ISBLANK(G189),IF(ISBLANK(A188),A187+1,A188+1)," ") -> 143 | B189: 13.11 | C189: Entities must configure critical information systems to be fault tolerant. | D189: Critical information systems should be made up of redundant components such as power supplies, hard drives, etc. | E189: NO | F189: =VLOOKUP(E189,Lookups!$A$2:$B$4,2,FALSE) -> 0
A190: =IF(ISBLANK(G190),IF(ISBLANK(A189),A188+1,A189+1)," ") -> 144 | B190: 13.12 | C190: Entities must ensure that critical data is restorable to a known secure state of operations. | D190: Organization should be taking backups of their system. Review backup schedule for completion and success | E190: NO | F190: =VLOOKUP(E190,Lookups!$A$2:$B$4,2,FALSE) -> 0
A191: =IF(ISBLANK(G191),IF(ISBLANK(A190),A189+1,A190+1)," ") -> 145 | B191: 13.13 | C191: Entities must test critical information system’s restoration annually. | D191: Organization should have an after action write up of their Disaster Recovery Tests. Review an after action report | E191: NO | F191: =VLOOKUP(E191,Lookups!$A$2:$B$4,2,FALSE) -> 0
A192: =IF(ISBLANK(G192),IF(ISBLANK(A191),A190+1,A191+1)," ") -> 146 | B192: 13.14 | C192: Entities must update Information Systems when the support for the components of the Information System are no longer available from the developer, vendor, or the manufacturer. | D192: Check to see if organization does not have any unsupported components such as outdated operating systems or applications. | E192: NO | F192: =VLOOKUP(E192,Lookups!$A$2:$B$4,2,FALSE) -> 0
B193: 14.0 | C193: SYSTEM AUDIT STANDARD | E193: Section 14 Overall | F193: =IFERROR(AVERAGE(F194:F206),"") -> 0 | H193: Evidence/Explanation
A194: =IF(ISBLANK(H194),IF(ISBLANK(A193),A192+1,A193+1)," ") -> 147 | B194: 14.1 | C194: Critical Systems and Information Systems that process, store or transmit Restricted-Use Information must be configured such that all user access interactions and system administrators’ actions are logged to both the internal system and to an external log repository (not on the local system). | D194: Organization should be collecting and storing logs for review if necessary. Check to see if logs are being collected and shipped to some form of log repository. Logs from Active Directory, Firewall, Databases, Applications, and webservers are key locations. | E194: NO | F194: =VLOOKUP(E194,Lookups!$A$2:$B$4,2,FALSE) -> 0
A195: =IF(ISBLANK(G195),IF(ISBLANK(A194),A193+1,A194+1)," ") -> 148 | B195: 14.2 | C195: The following data points must be logged: | D195: Organization should make audit logs available for review. Active Directory is a good source for security audit logs. Agency should be able to retrieve them easily. | E195: NO | F195: =VLOOKUP(E195,Lookups!$A$2:$B$4,2,FALSE) -> 0
A196: 149 | B196: 14.2.1 | C196: Event date
A197: 150 | B197: 14.2.2 | C197: Event time
A198: 151 | B198: 14.2.3 | C198: Event source
A199: 152 | B199: 14.2.4 | C199: Event description
A200: 153 | B200: 14.2.5 | C200: Identity of any individual(s) or subject(s) associated with the event(s).
A201: 154 | B201: 14.3 | C201: Logs for Critical Systems and Information Systems that process, store or transmit Restricted-Use Information must be stored and maintained for at least 120 days (180 days recommended) on an external log repository or in accordance with other regulatory requirements. | D201: Organization should show a log source that goes back 120 days or show significant storage capacity to support 120 days worth of logs. | E201: NO | F201: =VLOOKUP(E201,Lookups!$A$2:$B$4,2,FALSE) -> 0
... 50 more rows

Sheet How to Score (hidden)
B1: Definitions | C1: NIST
A2: 0 | B2: There are no security controls or plans in place. The controls are nonexistent. | C2: Non-existent
A3: 1 | B3: Base practices of the control area are generally performed on an ad hoc basis. There is general agreement within the organization that identified actions should be performed, and they are performed when required. The practices are not formally adopted, tracked, and reported on. Alternatively, policy has been adopted but is not implemented or is not followd widely through out the entity. | C3: Adhoc control or Documented Policy only
A4: 2 | B4: The base requirements for the control area are planned, implemented, and repeatable. A documented policy and documented process or procedure exsits. Implementation of the process and control may to be to varying degrees throughout the entity. | C4: Documented Procedures
A5: 3 | B5: The primary distinction from Level 2,documented procedures, is that in addition to being repeatable the processes used are more mature: documented, approved, and implemented organization-wide. Demonstrable entity wide acceptance is required to meet this level and above. | C5: Implementeded Procedures & Controls
A6: 4 | B6: The primary distinction from Level 3, Measured Program, is that the process is measured and verified (e.g., auditable). | C6: Measured Program
A7: 5 | B7: The primary distinction from Level 4, Prevasive Program, is that the defined, standard processes are regularly reviewed and updated. Improvements reflect an understanding of, and response to, a vulnerability's impact and metrics gathered from autid trails. | C7: Pervasive Program
A9: ISO 21827 https://www.sabs.co.za/content/uploads/files/SANS21827%28colour%29.pdf

Sheet Tool Mapping (hidden)
A1: Assessment Tool Questions* Mapped to ISO and NIST**
A2: Assessment Questions | C2: ISO | D2: NIST Controls | E2: NIST Family
A3: 1
A4: 2
A5: 3 | B5: 4.1
A6: 4 | B6: 4.2
C7: A.5 Security Policy | E7: AC: Access Control
A8: 5 | B8: 5.1.1 | C8: A.5.1 Information security policy | E8: AT: Awareness and Training
A9: 6 | B9: 5.1.1 | C9: A.5.1.1 Information security policy document | D9: XX-1 controls | E9: AU: Audit and Accountability
A10: 7 | B10: 5.1.2 | C10: A.5.1.2 Review of the information security policy | D10: XX-1 controls | E10: CA: Security Assessment and Authorization
C11: A.6 Organization of information security | E11: CM: Configuration Management
C12: A.6.1 Internal | E12: CP: Contingency Planning
A13: 8 | B13: 6.1.1 | C13: A.6.1.1 Management commitment to information security | D13: XX-1 controls, PM-2, PM-3, PM-9; SP 800-39,SP 800-37 | E13: IA: Identificaton and Authentication
A14: 9 | B14: 6.1.2 | C14: A.6.1.2 Information security coordination | D14: CP-2, CP-4, IR-4, PL-1, PL-2, PM-2, SA-2;SP 800-39, SP 800-37 | E14: IR: Incident Response
A15: 10 | B15: 6.1.3 | C15: A.6.1.3 Allocation of information security responsibilities | D15: XX-1 controls, AC-5, AC-6, CM-9, PM-2; SP 800-39, SP 800-37 | E15: MP: Media Protection
A16: 11 | B16: 6.1.4 | C16: A.6.1.4 Authorization process for information processing facilities | D16: CA-1, CA-6, PM-10; SP 800-37 | E16: PE: Physical and Environmental Protection
A17: 12 | B17: 6.1.5 | C17: A.6.1.5 Confidentiality agreements | D17: PL-4, PS-6, SA-9 | E17: PL: Planning
A18: 13 | B18: 6.1.6 | C18: A.6.1.6 Contact with authorities | D18: Multiple controls with contact reference (e.g.,IR-6, SI-5), SP 800-39; SP 800-37 | E18: PS: Personnel Security
A19: 14 | B19: 6.1.7 | C19: A.6.1.7 Contact with special interest groups | D19: AT-5, SI-5 | E19: RA: Risk Assessment
A20: 15 | B20: 6.1.8 | C20: A.6.1.8 Independent review of information security | D20: CA-2, CA-7; SP 800-39, SP 800-37 | E20: SA: System and Services Acquisition
C21: A.6.2 External Parties | E21: SC: System and Communications Protection
A22: 16 | B22: 6.2.1 | C22: A.6.2.1 Identification of risks related to external parties | D22: CA-3, PM-9, RA-3, SA-1, SA-9, SC-7 | E22: SI: System and Information Integrity
A23: 17 | B23: 6.2.2 | C23: A.6.2.2 Addressing security when dealing with customers | D23: AC-8 , AT-2, PL-4 | E23: PM: Program Management
C24: A.6.2.3 Addressing security in third party agreements | D24: AU-16, CA-2, CA-3, PS-7, SA-9
C25: A.7 Asset Management
C26: A.7.1 Responsibility for assets
A27: 18 | B27: 7.1.1 | C27: A.7.1.1 Inventory of assets | D27: CM-8, CM-9, PM-5
A28: 19 | B28: 7.2.1 | C28: A.7.1.2 Ownership of assets | D28: CM-8, CM-9, PM-5
C29: A.7.1.3 Acceptable use of assets | D29: AC-20, PL-4
C30: A.7.2 Information Classification
C31: A.7.2.1 Classification Guidelines | D31: RA-2
C32: A.7.2.2 Information labeling and handling | D32: AC-16, MP-2, MP-3, SC-16
C33: A.8 Human Resources Security
C34: A.8.1 Prior to Employment
C35: A.8.1.1 Roles and Responsibilities | D35: XX-1 controls, AC-5, AC-6, AC-8, AC-20, AT-2, AT-3, CM-9, PL-4, PS-2, PS-6, PS-7, SA-9
C36: A.8.1.2 Screening | D36: PS-3
C37: A.8.1.3 Terms and conditions of employment | D37: AC-20, PL-4, PS-6, PS-7
C38: A.8.2 During employment
A39: 20 | B39: 8.2.1 | C39: A.8.2.1 Management responsibilities | D39: PL-4, PM-13, PM-15, PS-6, PS-7, SA-9
A40: 21 | B40: 8.2.2 | C40: A.8.2.2 Awareness, education, and training | D40: AT-2, AT-3, IR-2
A41: 22 | B41: 8.2.3 | C41: A.8.2.3 Disciplinary process | D41: PS-8
A42: 23 | B42: 8.3.1 | C42: A.8.3 Termination or change of employment
A43: 24 | B43: 8.3.2 8.3.3 | C43: A.8.3.1 Termination responsibilities | D43: PS-4, PS-5
C44: A.8.3.2 Return of assets | D44: PS-4, PS-5
C45: A.8.3.3 Removal of access rights | D45: AC-2, PS-4, PS-5
C46: A.9 Physical and environmental security
C47: A.9.1 Secure areas
C48: A.9.1.1 Physical security perimeter | D48: PE-3
A49: 25 | B49: 9.1.2 | C49: A.9.1.2 Physical entry controls | D49: PE-3, PE-5, PE-6
C50: A.9.1.3 Securing offices, rooms, facilities | D50: PE-3, PE-4, PE-5
A51: 26 | B51: 9.1.4 | C51: A.9.1.4 Protecting against external and environmental threats | D51: CP Family; PE-1, PE-9, PE-10, PE-11, PE-13,PE-15
A52: 27 | B52: 9.1.5 | C52: A.9.1.5 Working in secure areas | D52: AT-2, AT-3 , PL-4, PS-6, PE-2, PE-3, PE-4, PE-6, PE-8
C53: A.9.1.6 Public access, delivery and loading areas | D53: PE-3 , PE-16
C54: A.9.2 Equipment security
C55: A.9.2.1 Equipment siting and protection | D55: PE-1, PE-18
C56: A.9.2.2 Supporting utilities | D56: PE-1, PE-9, PE-11, PE-12, PE-14
C57: A.9.2.3 Cabling security | D57: PE-4, PE-9
A58: 28 | B58: 9.2.4 | C58: A.9.2.4 Equipment maintenance | D58: MA Family
C59: A.9.2.5 Security of equipment off-premises | D59: MP-5, PE-17
A60: 29 | B60: 9.2.6 | C60: A.9.2.6 Secure disposal or reuse of equipment | D60: MP-6
A61: 30 | B61: 9.2.7 | C61: A.9.2.7 Removal of property MP-5, PE-16 | D61: MP-5 , PE-16
C62: A.10 Communications and operations management
C63: A.10.1 Operational procedures and responsibilities
A64: 31 | B64: 10.1.1 | C64: A.10.1.1 Documented operating procedures | D64: XX-1 controls, CM-9
A65: 32 | B65: 10.1.2 | C65: A.10.1.2 Change management | D65: CM-1, CM-3, CM-4, CM-5, CM-9
A66: 33 | B66: 10.1.3 | C66: A.10.1.3 Segregation of duties | D66: AC-5
A67: 34 | B67: 10.1.4 | C67: A.10.1.4 Separation of development, test and operational facilities | D67: CM-2
C68: A.10.2 Third-party service delivery management
A69: 35 | B69: 10.2.1 | C69: A.10.2.1 Service delivery | D69: SA-9
A70: 36 | B70: 10.2.2 | C70: A.10.2.2 Monitoring and review of third-party services | D70: SA-9
C71: A.10.2.3 Managing changes to third-party services | D71: RA-3, SA-9, SA-10
C72: A.10.3 System planning and acceptance
A73: 40 | B73: 10.3.1 | C73: A.10.3.1 Capacity management | D73: AU-4, AU-5, CP-2, SA-2, SC-5
C74: A.10.3.2 System acceptance | D74: CA-2, CA-6, CM-3, CM-4, CM-9, SA-11, SA-15, SA-17
C75: A.10.4 Protection against malicious and mobile code
A76: 41 | B76: 10.4.1 | C76: A.10.4.1 Controls against malicious code | D76: AC-19, AT-2, PE-20, SA-8, SC-2, SC-3, SC-7,SC-14, SC-38, SI-3, SI-7
C77: A.10.4.2 Controls against mobile code | D77: SA-8, SC-2, SC-3, SC-7, SC-14, SC-8, SC-18
C78: A.10.5 Backup
A79: 43 | B79: 10.5.1 | C79: A.10.5.1 Information backup | D79: CP-9
C80: A.10.6 Network security management
A81: 45 | B81: 10.6.1 | C81: A.10.6.1 Network controls | D81: AC-4, AC-17, AC-18, AC-20, CA-3, CP-8, PE-5,SC-7, SC-8, SC-9, SC-10, SC-19, SC-20, SC-21, SC-22, SC-23
C82: A.10.6.2 Security of network services | D82: CA-3, SA-9, SC-8, SC-9
C83: A.10.7 Media handling
A84: 50 | B84: 10.7.1 10.7.3 | C84: A.10.7.1 Management of removable media | D84: PE-16, MP Family
C85: A.10.7.2 Disposal of media | D85: MP-6
C86: A.10.7.3 Information handling procedures | D86: SI-12, MP Family
C87: A.10.7.4 Security of system documentation | D87: MP-4, SA-5
C88: A.10.8 Exchange of information
A89: 51 | B89: 10.8.1 | C89: A.10.8.1 Information exchange policies and procedures | D89: AC-1, AC-3, AC-4, AC-17, AC-18, AC-20, CA-3, PL-4, PS-6, SC-7, SC-16, SI-9
C90: A.10.8.2 Exchange agreements | D90: CA-3, SA-9
C91: A.10.8.3 Physical media in transit | D91: MP-5
C92: A.10.8.4 Electronic messaging | D92: Multiple controls; electronic messaging not addressed separately in SP 800-53
C93: A.10.8.5 Business information systems | D93: CA-1, CA-3
C94: A.10.9 Electronic commerce services
A95: 52 | B95: 10.9.1 10.9.2 | C95: A.10.9.1 Electronic commerce | D95: AU-10, IA-8, SC-7, SC-8, SC-9, SC-3, SC-14
C96: A.10.9.2 Online transactions | D96: SC-3, SC-7, SC-8, SC-9, SC-14
C97: A.10.9.3 Publicly available information | D97: SC-14
C98: A.10.10 Monitoring
A99: 53 | B99: 10.10.1 | C99: A.10.10.1 Audit logging | D99: AU-1, AU-2, AU-3, AU-4, AU-5, AU-8, AU-11, AU-12
A100: 54 | B100: 10.10.2 | C100: A.10.10.2 Monitoring system use | D100: AU-1, AU-6, AU-7, PE-6, PE-8, SC-7, SI-4
C101: A.10.10.3 Protection of log information | D101: AU-9
A102: 57 | B102: 10.10.4 | C102: A.10.10.4 Administrator and operator logs | D102: AU-2, AU-12
A103: 59 | B103: 10.10.5 | C103: A.10.10.5 Fault logging | D103: AU-2, AU-12, SI-2
A104: 60 | B104: 10.10.6 | C104: A.10.10.6 Clock synchronization | D104: AU-8
C105: A.11 Access Control
C106: A.11.1 Business requirement for access control
A107: 61 | B107: 11.1.1 | C107: A.11.1.1 Access control policy | D107: AC-1, AC-5, AC-6, AC-17, AC-18, AC-19, CM-5, MP-1, SI-9
C108: A.11.2 User access management
A109: 62 | B109: 11.2.1 | C109: A.11.2.1 User registration | D109: AC-1, AC-2, AC-21, IA-5, PE-1, PE-2
B110: 11.2.2 | C110: A.11.2.2 Privilege management | D110: AC-1, AC-2, AC-6, AC-21, PE-1, PE-2, SI-9
A111: 63 | B111: 11.2.3 | C111: A.11.2.3 User password management | D111: IA-5
A112: 64 | B112: 11.2.4 | C112: A.11.2.4 Review of user access rights | D112: AC-2, PE-2
C113: A 11.3 User responsibilities
C114: A.11.3.1 Password use | D114: IA-2, IA-5
C115: A.11.3.2 Unattended user equipment | D115: AC-11, IA-2, PE-3, PE-5, PE-18, SC-10
C116: A.11.3.3 Clear desk and clear screen policy | D116: AC-11, MP-4
C117: A.11.4 Network access control
C118: A.11.4.1 Policy on use of network services | D118: AC-1, AC-5, AC-6, AC-17, AC-18, AC-20
A119: 65 | B119: 11.4.2 | C119: A.11.4.2 User authentication for external connections | D119: AC-17, AC-18, AC-20, CA-3, IA-2, IA-8
C120: A.11.4.3 Equipment identification in networks | D120: AC-19, IA-3
A121: 66 | B121: 11.4.4 | C121: A.11.4.4 Remote diagnostic and configuration port protection | D121: AC-3, AC-6, AC-17, AC-18, PE-3, MA-3, MA-4
C122: A.11.4.5 Segregation in networks
A123: 67 | B123: 11.4.6 | C123: A.11.4.6 Network connection control | D123: AC-3, AC-6, AC-17, AC-18, SC-7
A124: 68 | B124: 11.4.7 | C124: A.11.4.7 Network routing control | D124: AC-4, AC-17, AC-18
C125: A 11.5 Operating system access control
A126: 69 | B126: 11.5.1 | C126: A.11.5.1 Secure log-on procedures | D126: AC-7, AC-8, AC-9, AC-10, IA-2, IA-6, IA-8, SC-10
A127: 70 | B127: 11.5.2 | C127: A.11.5.2 User identification and authentication | D127: IA-2, IA-4, IA-5, IA-8
A128: 72 | B128: 11.5.3 | C128: A.11.5.3 Password management system | D128: IA-2, IA-5
A129: 73 | B129: 11.5.4 | C129: A.11.5.4 Use of system utilities | D129: AC-3, AC-6
C130: A.11.5.5 Session time-out | D130: AC-11, SC-10
C131: A.11.5.6 Limitation of connection time | D131: AC-2
C132: A.11.6 Application and information access control
C133: A.11.6.1 Information access restriction | D133: AC-3, AC-6, AC-14, CM-5
A134: 74 | B134: 11.6.2 | C134: A.11.6.2 Sensitive system isolation | D134: SC-7; SP 800-39
C135: A.11.7 Mobile computing and teleworking
A136: 75 | B136: 11.7.1 | C136: A.11.7.1 Mobile computing and communications | D136: AC-1, AC-17, AC-18, AC-19, PL-4, PS-6
A137: 77 | B137: 11.7.2 | C137: A.11.7.2 Teleworking | D137: AC-1, AC-4, AC-17, AC-18, PE-17, PL-4, PS-6
C138: A.12 Information systems acquisition, development and maintenance
A139: 78 | B139: 12.1 | C139: A.12.1 Security requirements of information systems
A140: 79 | B140: 12.1.1 | C140: A.12.1.1 Security requirements analysis and specification | D140: PL-7, PL-8, SA-1, SA-3, SA-4
C141: A.12.2 Correct processing in applications
A142: 80 | B142: 12.2.1 | C142: A.12.2.1 Input data validation | D142: SI-10
A143: 81 | B143: 12.2.2 | C143: A.12.2.2 Control of internal processing | D143: SI-7, SI-9, SI-10
A144: 82 | B144: 12.2.3 | C144: A.12.2.3 Message integrity | D144: AU-10, SC-8, SC-23, SI-7
A145: 83 | B145: 12.2.4 | C145: A.12.2.4 Output data validation | D145: SI-7
C146: A.12.3 Cryptographic controls
A147: 84 | B147: 12.3.1 | C147: A.12.3.1 Policy on the use of cryptographic controls | D147: Multiple controls address cryptography (e.g., IA-7, SC-8, SC-9, SC-12, SC-13)
A148: 85 | B148: 12.3.2 | C148: A.12.3.2 Key management | D148: SC-12, SC-17
C149: A.12.4 Security of system files
A150: 86 | B150: 12.4.1 | C150: A.12.4.1 Control of operational software | D150: CM-1, CM-2, CM-3, CM-4, CM-5, CM-9, CM-10, CM-11, PL-4
A151: 87 | B151: 12.4.2 | C151: A.12.4.2 Protection of system test data Multiple controls; protection of test data not addressed separately in SP 800-53 (e.g., AC-3, AC-4)
A152: 88 | B152: 12.4.3 | C152: A.12.4.3 Access control to program source code | D152: AC-3, AC-6, CM-5, CM-9, MA-5, SA-10
A153: 89 | B153: 12.5.1 | C153: A.12.5 Security in development and support processes
A154: 90 | B154: 12.5.2 | C154: A.12.5.1 Change control procedures | D154: CM-1, CM-3, CM-9, SA-10
C155: A.12.5.2 Technical review of applications after operating system changes | D155: CM-3, CM-4, CM-9, SI-2
C156: A.12.5.3 Restrictions on changes to software packages | D156: CM-3, CM-4, CM-5, CM-9
A157: 91 | B157: 12.5.4 | C157: A.12.5.4 Information leakage | D157: AC-4, IR-9, PE-19
A158: 92 | B158: 12.5.5 | C158: A.12.5.5 Outsourced software development | D158: CM-10, CM-11, SA-1, SA-4, SA-8, SA-9, SA-11, SA-12, SA-15, SA-17
C159: A.12.6 Technical Vulnerability Management
A160: 93 | B160: 12.6.1 | C160: A.12.6.1 Control of technical vulnerabilities | D160: RA-3, RA-5, SI-2, SI-5
C161: A.13 Information security incident management
C162: A.13.1 Reporting information security events and weaknesses
A163: 94 | B163: 13.1.1 13.1.2 | C163: A.13.1.1 Reporting information security events | D163: AU-6, IR-1, IR-6, SI-4, SI-5
C164: A.13.1.2 Reporting security weaknesses | D164: PL-4, SI-2, SI-4, SI-5
C165: A.13.2 Management of information security incidents and improvements
C166: A.13.2.1 Responsibilities and procedures | D166: IR-1
C167: A.13.2.2 Learning from information security incidents | D167: IR-4
A168: 95 | B168: 13.2.3 | C168: A.13.2.3 Collection of evidence | D168: AU-7, AU-9, IR-4
C169: A.14 Business continuity management
C170: A.14.1 Information security aspects of business continuity management
A171: 96 | B171: 14.1.1 | C171: A.14.1.1 Including information security in the business continuity management process | D171: CP-1, CP-2, CP-4
C172: A.14.1.2 Business continuity and risk assessment | D172: CP-2, PM-9, RA Family
C173: A.14.1.3 Developing and implementing continuity plans including information security | D173: CP Family
C174: A.14.1.4 Business continuity planning framework | D174: CP-2, CP-4
C175: A.14.1.5 Testing, maintaining and reassessing business continuity plans | D175: CP-2, CP-4
C176: A.15 Compliance
C177: A.15.1 Compliance with legal requirements
C178: A.15.1.1 Identification of applicable legislation | D178: XX-1 controls, IA-7
C179: A.15.1.2 Intellectual property rights (IPR) | D179: CM-10
A180: 97 | B180: 15.1.3 | C180: A.15.1.3 Protection of organizational records | D180: AU-9, AU-11, CP-9, MP-1, MP-4, SA-5, SI-12
A181: 98 | B181: 15.1.4 | C181: A.15.1.4 Data protection and privacy of personal information | D181: Appendix J; SI-12
A182: 99 | B182: 15.1.5 | C182: A.15.1.5 Prevention of misuse of information processing facilities | D182: AC-8, AU-6, CM-11, PL-4, PS-6, PS-8
A183: 100 | B183: 15.1.6 | C183: A.15.1.6 Regulation of cryptographic controls | D183: IA-7, SC-13
C184: A.15.2 Compliance with security policies and standards, and technical compliance
A185: 101 | B185: 15.2.1 | C185: A.15.2.1 Compliance with security policies and standards | D185: XX-1 controls, AC-2, CA-2, CA-7, IA-7, PE-8, SI-12
A186: 102 | B186: 15.2.2 | C186: A.15.2.2 Technical compliance checking | D186: CA-2, CA-7, RA-5
C187: A.15.3 Information systems audit considerations
A188: 103 | B188: 15.3.1 | C188: A.15.3.1 Information systems audit controls | D188: AU-1, AU-2
A189: 104 | B189: 15.3.2 | C189: A.15.3.2 Protection of information systems audit tools | D189: AU-9
A190: * Direct mappings are listed above. In some cases questions were formed that covered more than one ISO area making one-to-one mapping difficult.
A191: **NIST to ISO mapping from http://csrc.nist.gov/publications/drafts/800-53-rev4/sp800-53-rev4-ipd.pdf

Sheet Lookups
A1: Description | B1: Value | F1: Description | G1: Value
A2: NO | B2: 0 | F2: YES | G2: 1
A3: YES | B3: 1 | F3: NO | G3: 0
A4: Not Applicable | B4: Blank
